Cogmind - Beta 17 @@@ ROGUE MODE // 2026.07.21 @ 23:49:39 Player: kim.jet.wav Result: Self-destructed Performance ------------- Evolutions (1) 500 Regions Visited (2) 400 Robots Destroyed (31) 155 Value Destroyed (758) 758 Prototype IDs (0) 0 Alien Tech Used (0) 0 Bonus (0) 0 TOTAL SCORE: 1813 Bonus ------- None Cogmind --------- Core Integrity 300/400 Matter 205/300 Energy 84/100 System Corruption 0% Temperature Cool (0) Movement Walking (120) Location -9/Materials Parts ------- > --- POWER (1) -------- (None) > --- PROPULSION (3) --- Aluminum Leg Aluminum Leg Aluminum Leg > --- UTILITY (3) ------ Cooling System Medium Storage Unit > --- WEAPON (2) ------- Rocket Launcher > --- INVENTORY (10) --- Aluminum Leg Aluminum Leg Aluminum Leg Aluminum Leg Sensor Array EM Pulse Gun Improved Light Cannon Improved Light Cannon Peak State ------------ > --- POWER ------------ Light Nuclear Core > --- PROPULSION ------- Aluminum Leg Aluminum Leg Aluminum Leg > --- UTILITY ---------- Heat Sink Improved Heat Sink Medium Storage Unit > --- WEAPON ----------- EM Pulse Gun Particle Gun > --- INVENTORY -------- Aluminum Leg Aluminum Leg Aluminum Leg Aluminum Leg Aluminum Leg EM Pulse Gun EM Pulse Gun [Rating: 14] Favorites ----------- Power Ion Engine Engine Ion Engine Power Core Light Nuclear Core Propulsion Aluminum Leg Leg Aluminum Leg Utility Improved Heat Sink Device Improved Heat Sink Storage Medium Storage Unit Weapon Particle Gun Energy Gun Particle Gun Launcher Rocket Launcher Build | -11 -10 -9 ------- Run | Yrd Mat Mat Slots Evolved 2 | . . 2 Power . | . . . Propulsion 1 | . . 1 Utility 1 | . . 1 Weapon . | . . . Parts Attached 26 | 7 10 9 Power 4 | 1 2 1 Engine 3 | 1 1 1 Core 1 | . 1 . Reactor . | . . . Propulsion 8 | 2 4 2 Treads . | . . . Leg 8 | 2 4 2 Wheel . | . . . Hover . | . . . Flight . | . . . Utility 6 | 2 2 2 Device 4 | 1 1 2 Storage 2 | 1 1 . Processor . | . . . Hackware . | . . . Protection . | . . . Artifact . | . . . Weapon 8 | 2 2 4 Energy Gun 6 | 2 2 2 Energy Cannon . | . . . Ballistic Gun . | . . . Ballistic Cannon . | . . . Launcher 2 | . . 2 Special Weapon . | . . . Impact Weapon . | . . . Slashing Weapon . | . . . Piercing Weapon . | . . . Special Melee Weapon . | . . . Unidentified Prototypes . | . . . Parts Lost 7 | . 2 5 Power 1 | . . 1 Propulsion . | . . . Utility 1 | . . 1 Weapon 5 | . 2 3 Highest Loss Streak 4 | . 1 4 To Critical Strikes . | . . . Average Backups 6 | . 6 7 Power . | . . . Propulsion 3 | . 3 4 Utility 1 | . 1 . Weapon 1 | . . 2 Tool/Special . | . . . Unused Backups 7 | . 3 4 Power . | . . . Propulsion 2 | . . 2 Utility 3 | . 3 . Weapon 2 | . . 2 Tool/Special . | . . . Average Slot Usage (%) 97 | . 99 91 Engine 7 | . 8 4 Core 5 | . 5 6 Leg 29 | . 28 33 Device 14 | . 14 14 Storage 13 | . 14 11 Energy Gun 25 | . 27 18 Peak Build Rating 14 | 7 12 14 Average Rating 10 | 5 10 11 On Entrance 6 | . 7 12 Avg Prop Armor Cover (%) 9 | 11 9 . Naked Turns . | . . . Heaviest Build 26 | 15 21 26 Greatest Support 30 | 20 20 30 Greatest Overweight (x) 2 | 2 1 . Average Overweight (x) . | . . . Largest Inventory Capacity 10 | 8 10 10 Average Capacity 9 | 7 8 10 Most Carried 9 | 1 9 9 Average Carried 6 | . 6 7 Final Capacity 10 | 8 10 10 Final Carried 8 | 1 8 8 Class Distribution -------------------- 65% | Mutant 34% | Scavenger-Mutant Dominant Class ---------------- Mutant | -10/Materials Scavenger-Mutant | -9/Materials Resources | -11 -10 -9 ----------- Run | Yrd Mat Mat Matter Collected 502 | 270 105 127 Remotely . | . . . Salvage Created 861 | 122 469 270 Parts 57 | 12 23 22 Haulers Intercepted 1 | . . 1 Recyclers Shooed . | . . . Parts Field Recycled . | . . . Retrieved Matter . | . . . Parts Self-Destructed . | . . . Prevented . | . . . Parts Restored . | . . . Kills | -11 -10 -9 ------- Run | Yrd Mat Mat Combat Hostiles Destroyed 24 | . 11 13 Guns 14 | . 11 3 AOE 10 | . . 10 Classes Destroyed 9 | 2 5 2 Worker 1 | . 1 . Builder 1 | . 1 . Tunneler 2 | 2 . . Hauler 1 | . . 1 Recycler 1 | 1 . . Operator 1 | . 1 . Swarmer 11 | . 3 8 Grunt 10 | . 8 2 Sentry 3 | . . 3 Best Kill Streak 8 | 3 4 8 Combat Bots Only 8 | . 3 8 Max Kills in Single Turn 6 | 1 2 6 Gunslinging 1 | . 1 . Exploded 6 | . . 6 Melee . | . . . Uniques/NPCs Destroyed . | . . . Combat | -11 -10 -9 -------- Run | Yrd Mat Mat Hostile Shots Fired 140 | . 86 54 Missed 38 | . 23 15 Hits 102 | . 63 39 Melee 6 | . . 6 Projectile 96 | . 63 33 Critical Strikes 4 | . 1 3 Damage Taken 1482 | . 709 773 Core 281 | . 181 100 Absorbed by Shields . | . . . Core Remaining (%) 63 | 100 27 . Volleys Fired 87 | 5 55 27 Largest 2 | 2 2 2 Hottest 115 | 90 115 105 Shots Fired 154 | 10 100 44 Gun 142 | 10 100 32 Cannon . | . . . Launcher 12 | . . 12 Special . | . . . Kinetic . | . . . Thermal 80 | 5 66 9 Explosive 12 | . . 12 Electromagnetic 62 | 5 34 23 Robot Hit Streak 11 | 5 11 9 Robot Miss Streak 6 | 1 6 3 Penetration Max . | . . . Secondary Targets 2 | . 1 1 Max Gunslinging Chain 1 | . 1 1 Shots Hit Robots 90 | 8 55 27 Core Hits 47 | 4 25 18 Critical Kills . | . . . Critical Parts Destroyed . | . . . Critical Strikes 4 | . 4 . Burn 4 | . 4 . Melee Attacks . | . . . Impact . | . . . Slashing . | . . . Piercing . | . . . Sneak Attacks . | . . . Combat Hostiles . | . . . Follow-up Attacks . | . . . Damage Inflicted 2067 | 102 848 1117 Guns 1194 | 102 803 289 Cannons . | . . . Explosions 873 | . 45 828 Melee . | . . . Ramming . | . . . Kinetic . | . . . Thermal 933 | 62 602 269 Explosive 709 | . . 709 Electromagnetic 425 | 40 246 139 Impact . | . . . Slashing . | . . . Piercing . | . . . Highest Corruption . | . . . Average Corruption . | . . . Corruption Purged . | . . . Corruption Blocked . | . . . Overload Shots . | . . . Overflow Damage 18 | . . 18 Projectiles . | . . . Explosions 18 | . . 18 Melee . | . . . Knockbacks . | . . . Impact . | . . . Kinetic . | . . . Secondary . | . . . Self-Inflicted Damage 145 | . . 145 Shots 4 | . . 4 Rammed . | . . . Targets Rammed . | . . . Kicked . | . . . Crushed . | . . . Highest Temperature 381 | 150 381 129 Average Temperature 107 | 78 119 63 Received Heat Transfer 501 | . 333 168 Effects 1 | . 1 . Energy Bleed 1 | . 1 . Siege Activations . | . . . Martial Activations . | . . . Shielding Activations . | . . . Robots Disrupted . | . . . Combat Hostiles . | . . . Robots Corrupted . | . . . Combat Hostiles . | . . . Parts Fried 2 | . 1 1 Impact Corruptions . | . . . Robots Melted . | . . . Combat Hostiles . | . . . Parts Melted 4 | . 1 3 Heat Transferred 2444 | 185 1876 383 Parts Sabotaged . | . . . Parts Stolen . | . . . Parts Stripped . | . . . Power Chain Reactions 5 | . 2 3 Alert | -11 -10 -9 ------- Run | Yrd Mat Mat Maximum Alert Level 1 | . . 1 Low Security (%) 99 | 100 100 98 Level 1 . | . . 1 Level 2 . | . . . Level 3 . | . . . Level 4 . | . . . Level 5 . | . . . High Security . | . . . Max Security . | . . . Peak Influence 305 | 10 102 305 Initial 9 | . . 9 Average 33 | 1 32 43 Influence Increases 949 | 15 355 579 Destroy 0b10 Robot/C 480 | . 220 260 Destroy 0b10 Robot/NC 35 | 15 15 5 Destroy Leader 102 | . 50 52 Successful Hack 3 | . 3 . Disable Machine 135 | . . 135 Destroy Structure 89 | . 7 82 Lose Combat Pursuer 105 | . 60 45 Influence Decreases 532 | 15 331 186 Entered New Map 15 | . . 15 Time Decay 465 | 15 321 129 Lost Part 52 | . 10 42 Squads Dispatched 1 | . 1 . Investigation . | . . . Extermination . | . . . Reinforcement 1 | . 1 . Assault . | . . . Garrison . | . . . Intercept . | . . . Searches Triggered . | . . . Construction Impeded . | . . . Haulers Reinforced . | . . . Active Scanning Responses . | . . . Cargo Convoy Interrupts . | . . . Stealth | -11 -10 -9 --------- Run | Yrd Mat Mat Distress Signals 2 | . 1 1 Communications Jammed . | . . . Distress Signals . | . . . Times Spotted 34 | . 20 14 Peak Tracking Total 6 | . 4 6 Tactical Retreats 5 | . 4 1 Traps | -11 -10 -9 ------- Run | Yrd Mat Mat Traps Triggered . | . . . Indirectly . | . . . Trap Hack Attempts . | . . . Triggered . | . . . Disarmed . | . . . Reprogrammed . | . . . Reused . | . . . Traps Extracted . | . . . Installed . | . . . Triggered . | . . . Machines | -11 -10 -9 ---------- Run | Yrd Mat Mat Machines Disabled 9 | . . 9 Max in Single Turn 7 | . . 7 Machines Repaired . | . . . Machines Dismantled . | . . . Machines Sabotaged . | . . . Overloaded Fab Kills . | . . . Hacking | -11 -10 -9 --------- Run | Yrd Mat Mat Machines Accessed 7 | . 6 1 Terminals 7 | . 6 1 Fabricators . | . . . Repair Stations . | . . . Recycling Units . | . . . Scanalyzers . | . . . Garrison Access . | . . . Total Hacks 17 | . 15 2 Successful 9 | . 7 2 Failed 8 | . 8 . Catastrophic 1 | . 1 . Database Lockouts . | . . . Manual 15 | . 14 1 Terminals 17 | . 15 2 Fabricators . | . . . Repair Stations . | . . . Recycling Units . | . . . Scanalyzers . | . . . Garrison Access . | . . . Terminal Hacks 3 | . 2 1 Branch Access Points 1 | . . 1 Locate Traps 1 | . 1 . Zone Layout 1 | . 1 . Fabricator Hacks . | . . . Repair Station Hacks . | . . . Recycling Unit Hacks . | . . . Scanalyzer . | . . . Garrison Access Hacks . | . . . Unauthorized Hacks 6 | . 5 1 Terminals 6 | . 5 1 Assimilate 1 | . 1 . Botnet 4 | . 3 1 Operators 1 | . 1 . Fabricators . | . . . Repair Stations . | . . . Recycling Units . | . . . Scanalyzers . | . . . Garrison Access . | . . . Data Cores Recovered . | . . . Used . | . . . Hacking Detections 4 | . 3 1 Full Trace Events . | . . . Feedback Events . | . . . Feedback Blocked . | . . . Robot Schematics Acquired . | . . . Robots Built . | . . . Authchips . | . . . Time . | . . . Total Robot Build Rating . | . . . Part Schematics Acquired . | . . . Parts Built . | . . . Authchips . | . . . Time . | . . . Total Part Build Rating . | . . . Part Studies Acquired . | . . . Parts Repaired . | . . . Time . | . . . Parts Recycled . | . . . Recycled Matter . | . . . Retrieved Matter . | . . . Retrieved Components . | . . . Parts Scanalyzed . | . . . Part Schematics Acquired . | . . . Parts Damaged . | . . . Bothacking | -11 -10 -9 ------------ Run | Yrd Mat Mat Used RIF Installer . | . . . Robots Hacked . | . . . Non-combat . | . . . Combat . | . . . Robot Hacks Applied . | . . . Relay Couplers Released . | . . . Fabnet Peak Effective % . | . . . Robots Rewired . | . . . Allies Hacked . | . . . Hacks Repelled . | . . . Allies | -11 -10 -9 -------- Run | Yrd Mat Mat Total Allies . | . . . Largest Group . | . . . Highest-Rated Group . | . . . Highest-Rated Ally . | . . . Total Orders . | . . . Ally Attacks . | . . . Total Damage . | . . . Kills . | . . . Allies Corrupted . | . . . Allies Melted . | . . . Intel | -11 -10 -9 ------- Run | Yrd Mat Mat Active Infowar (turns) 257 | 14 243 . Seismic 257 | 14 243 . Robot Analysis Total . | . . . Derelict Logs Recovered . | . . . Drone Launches . | . . . Drone Recoveries . | . . . Exploration | -11 -10 -9 ------------- Run | Yrd Mat Mat Turns Passed 1543 | 84 1088 371 Spaces Moved 811 | 52 558 201 Core 16 | 16 . . Treads . | . . . Legs 795 | 36 558 201 Wheels . | . . . Hover . | . . . Flight . | . . . Fastest Speed 50 | 50 120 120 Average Speed 141 | 110 152 120 Slowest Speed 190 | 150 190 120 Overloaded Moves . | . . . Propulsion Burnouts . | . . . Robots Hopped . | . . . Potential Cave-ins . | . . . Cave-ins Triggered . | . . . Exploration Rate (%) 32 | 4 69 25 Regions Visited 2 Branch Regions . Pre-discovered Areas . | . . . Known Exits Taken . | . . . Unknown Exits Taken 2 | 1 1 . Scrap Searched . | . . . Spaces Dug . | . . . Terrain Destroyed 104 | . 5 99 Melee . | . . . Projectile . | . . . AOE 104 | . 5 99 Terrain Rammed . | . . . Walls Destroyed . | . . . Machines Disabled . | . . . Actions | -11 -10 -9 --------- Run | Yrd Mat Mat Total 1050 | 65 699 286 Wait 88 | . 53 35 Move 809 | 51 557 201 Hop . | . . . Pick Up 18 | 2 10 6 Fast Attach 12 | 6 4 2 Attach 7 | 1 2 4 Detach 6 | . 4 2 Swap 10 | . 5 5 Drop 13 | . 9 4 Fire 87 | 5 55 27 Melee . | . . . Ram . | . . . Kick . | . . . Crush . | . . . Escape Stasis . | . . . Rewire . | . . . Trap . | . . . Miscellaneous . | . . . Route ------- -11/Scrapyard -10/Materials (discovered 2 exits: *Mat x2) -9/Materials (discovered 2 exits: Min x2) History --------- Turn | Location | Event 8 | -11/Scrapyard | Discovered new exit (range 16) 85 | -11/Scrapyard | Entered Materials 619 | -10/Materials | Discovered new exit (range 15) 737 | -10/Materials | Core integrity fell below 50% 875 | -10/Materials | Build established: Mutant 984 | -10/Materials | Discovered new exit (range 16) 1173 | -10/Materials | Entered another Materials area 1173 | -9/Materials | Evolved 2 slots: Propulsion x1, Utility x1 1194 | -9/Materials | Identified exit to Mines 1544 | -9/Materials | Self-destructed Last Messages --------------- 01530_ The unstable cave ceiling collapses. 01530_ U-05 Engineer builds a Wall. 01530_ EM Pulse Gun destroyed. 01530_ Imp. Ion Engine destroyed. 01531_ The unstable cave ceiling collapses. 01533_ G-34 Mercenary destroyed. 01534_ U-05 Engineer builds a Wall. 01538_ The unstable cave ceiling collapses. 01538_ U-05 Engineer builds a Wall. 01539_ The unstable cave ceiling collapses. 01539_ Terminal disabled. 01539_ S-10 Pest destroyed. 01539_ Destroyed Flight Unit. 01539_ S-10 Pest destroyed. 01540_ Heat Sink destroyed. 01540_ Rocket Launcher destroyed. 01540_ U-05 Engineer builds a Wall. 01543_ The unstable cave ceiling collapses. 01543_ U-05 Engineer builds a Wall. 01544_ Fusion Modulator explodes. Map ----- +----------------------------------------------------+ | ?????????????????????????????????????# #??? | | ?????????????????????????????????????# ! #??? | | ?????????????????????????????????????# ! #??? | | ?????????????????????????????????????# #??? | | ?????????????????????????????????????# #??? | | ?????????????????????????????????????# #??? | | ?????????????????????????????????????# #??? | | ?????????????????????????????????????#####+####### | | ????????????????????????????????????????# % | | ????????????????????????????????????##### ###### | | ????????????????????????????????????+ #????? | | ????????????????????????????????????##### #????? | | ???????????????????#????????????????????# #????? | | ???????????????? ;## ???????????????????# #????? | | ?????????????? ?????????????????## ##??## | | ?????????????? !??########???????# #??# | | ????????????? ? ########## #?# | | ????????????? u #?## | | ???????????? ? ######+## #??## | | ???????????? ### ## ## #???? | | ???????????? ## ########???? | | ??????????? ## #??????????? | | ??????????? [ ## #########??? | | ?????????? = ## !! # ???# | | ?????????? # !! # """"???# | | ?????????? @ l! # # # """"???# | | ??????????;;;;;;;; #T ## # #+# """""??? | | ???????????????????##### = # """""??? | | ???????????????????????# ! + """""??? | | ???????????????????????## # """""??? | | ????????????????????????## [ #### """""??? | | ?????????????????????????##### #####?# ??? | | ?????????????????????????????#######??############ | | ???????????????????????????????????????????????# | | ?????????????????????????????????????????####### | | ?????????????????????????????????????????# # | | ?????????????????????????????????????????# # | | ?????????????????????????????????????????# + | | ?????????????????????????????????????????# # | | ?????????????????????????????????????????# # | | ?????????????????????????????????????????## ## | | ??????????????????????????????????????????# ?# | | ??????????????????????????????????????????# ?### | | ??????????????????????????????????????????# ???? | | ??????????????????????????????????????????# ???? | | ?????????????????????????????????????????? ???? | | ????????????????????????????????????????? ????? | | ????????????????????????????>???????????? ????? | | ???????????????????????????????????????? ????? | | ???????????????????????????????????????### ????? | +----------------------------------------------------+ Best States ------------- Heat Dissipation 60 Energy Generation 14 Energy Capacity 265 Matter Stores 300 Matter Capacity 300 Sight Range 16 Terrain Scan Density 10 Evasion (%) 55 Item Schematics ----------------- None Robot Schematics ------------------ None Fabricated ------------ Nothing Repaired ---------- Nothing Studied --------- None Alien Tech Used ----------------- None Achievements -------------- None Challenges ------------ None Game ------ Seed OmegaDispersionRocket Manual? 0 Play Time 00:18:21 Cumulative 70.1 hours Start 2026.07.21 @ 21:56:35 End 2026.07.21 @ 23:49:39 Sessions 3 Manual Loads 0 Difficulty Rogue Special Mode None Game No. 248 Rogue 248 Adventurer 0 Explorer 0 Win Type - Total 0 Types 0/0/0/0/0/0/0/0/0/0 Lore% 34 Gallery% 22 Achievement% 19 Wizard Run 0 Options --------- Layout 0 ASCII 1 Keyboard 1 Movement Numpad Keybinds 1 Fullscreen 1 Font 18/X11 Map View 76x50 Zoom Use 0% Tactical HUD 1 Map Filters NONE Filters NONE Steam 1 RUN: 83f2931f-9421-49a7-b97e-4cfd39e26fbe